bitfinex/quotes_BTCUSD_20250124
["timestamp","ask_amount","ask_price","bid_price","bid_amount"]
[1737690969143,0.43301989,103970.0,103960.0,0.1289009]
[1737690970906,0.43301989,103970.0,103960.0,0.4965356]
[1737690971801,0.3467573,103970.0,103960.0,0.4965356]
[1737690974301,0.31557285,103970.0,103960.0,0.4965356]
[1737690974547,0.11464612,103970.0,103960.0,0.67261906]
[1737690975466,0.10664612,103970.0,103960.0,0.67261906]
[1737690975668,0.00929883,103970.0,103960.0,0.67261906]
[1737690976290,0.00029883,103970.0,103960.0,0.67261906]
[1737690976706,0.01529883,103970.0,103960.0,1.85891906]
[1737690976909,0.08626259,103980.0,103970.0,0.234081]
[1737690977150,0.08626259,103980.0,103970.0,0.28593537]
[1737690977791,0.38452761,103980.0,103970.0,0.234081]
[1737690978404,0.39552761,103980.0,103970.0,0.234081]
[1737690978616,0.39582644,103980.0,103970.0,0.234081]
[1737690978961,0.42613519,103980.0,103970.0,0.1279]
[1737690979178,0.3398726,103980.0,103970.0,0.1279]
[1737690979823,0.3398726,103980.0,103970.0,0.22524729]
[1737690980158,0.20481812,103980.0,103970.0,0.1379]
[1737690980512,0.30956385,103980.0,103970.0,0.234081]
[1737690980713,0.30956385,103980.0,103970.0,0.1279]
[1737690982702,0.30956385,103980.0,103970.0,0.4955347]
[1737690983471,0.30956385,103980.0,103970.0,0.6017157]
[1737690983638,0.30956385,103980.0,103970.0,0.69906299]
[1737690983838,0.20481812,103980.0,103970.0,0.69906299]
[1737690984246,0.30956385,103980.0,103970.0,0.5055347]
[1737690985230,0.30956385,103980.0,103970.0,0.4955347]
[1737690986059,0.30956385,103980.0,103970.0,0.5055347]
[1737690988392,0.30956385,103980.0,103970.0,0.4955347]
[1737690990706,0.30956385,103980.0,103970.0,0.495677]
[1737690991024,0.30956385,103980.0,103970.0,0.60302429]
[1737690991228,0.20481812,103980.0,103970.0,0.60302429]
[1737690991627,0.20481812,103980.0,103970.0,0.69920529]
[1737690991829,0.20481812,103980.0,103970.0,0.60302429]
[1737690992604,0.30956385,103980.0,103970.0,0.60302429]
[1737690993028,0.30956385,103980.0,103970.0,0.495677]
[1737690993237,0.30956385,103980.0,103970.0,0.505677]
[1737690998053,0.20481812,103980.0,103970.0,0.601858]
[1737690998263,0.10864612,103980.0,103970.0,0.601858]
[1737690999378,0.01129883,103980.0,103970.0,0.601858]
[1737690999583,0.01129883,103980.0,103970.0,0.69920529]
[1737691003411,0.00929883,103980.0,103970.0,0.69920529]
[1737691003622,0.00029883,103980.0,103970.0,1.98285258]
[1737691005156,0.00029883,103990.0,103980.0,0.106172]
[1737691005307,0.00029883,103990.0,103980.0,0.32841929]
[1737691005500,0.00029883,103990.0,103980.0,0.35281983]
[1737691006197,0.00029883,103990.0,103980.0,0.25547254]
[1737691006382,0.0074894,103990.0,103980.0,0.25547254]
[1737691006771,0.0074894,103990.0,103980.0,0.25847254]
[1737691007138,0.0074894,103990.0,103980.0,0.25947254]
[1737691007587,0.0074894,103990.0,103980.0,0.65947254]
[1737691007793,0.0074894,103990.0,103980.0,0.64947254]
[1737691007993,0.00029883,103990.0,103980.0,0.65947254]
[1737691008588,0.29855485,103990.0,103980.0,0.9065347]
[1737691008794,0.29855485,103990.0,103980.0,0.9055347]
[1737691008997,0.29855485,103990.0,103980.0,0.8605347]
[1737691009237,0.29855485,103990.0,103980.0,0.7716347]
[1737691009448,0.3288636,103990.0,103980.0,0.7716347]
[1737691009636,0.3288636,103990.0,103980.0,0.7676347]
[1737691009931,0.30355485,103990.0,103980.0,0.94228199]
[1737691010142,0.19880912,103990.0,103980.0,0.94228199]
[1737691010354,0.30355485,103990.0,103980.0,0.7676347]
[1737691010666,0.31255485,103990.0,103980.0,0.7676347]
[1737691010867,0.31455485,103990.0,103980.0,0.7676347]
[1737691012713,0.33755485,103990.0,103980.0,0.7676347]
[1737691013121,0.33755485,103990.0,103980.0,0.767777]
[1737691013449,0.33755485,103990.0,103980.0,0.86512429]
[1737691013651,0.31455485,103990.0,103980.0,0.86512429]
[1737691014468,0.33755485,103990.0,103980.0,0.767777]
[1737691014623,0.33755485,103990.0,103980.0,0.72987562]
[1737691017070,0.3678636,103990.0,103980.0,0.72987562]
[1737691021013,0.33755485,103990.0,103980.0,0.72987562]
[1737691021788,0.3678636,103990.0,103980.0,0.72987562]
[1737691021999,0.4130636,103990.0,103980.0,0.72987562]
[1737691022208,0.4894636,103990.0,103980.0,0.72987562]
[1737691022489,0.4894636,103990.0,103980.0,0.36224092]
[1737691022649,0.4894636,103990.0,103980.0,0.24650838]
[1737691022650,1.10052273,103990.0,103980.0,0.24650838]
[1737691023073,0.51236562,103990.0,103980.0,0.24650838]
[1737691023275,0.49836562,103990.0,103980.0,0.24650838]
[1737691023738,0.50736562,103990.0,103980.0,0.24650838]
[1737691023940,1.91087002,103990.0,103980.0,0.15033838]
[1737691024278,1.91087002,103990.0,103980.0,0.11187038]
[1737691024469,1.91687002,103990.0,103980.0,0.07340238]
[1737691024668,1.21687002,103990.0,103980.0,0.05416838]
[1737691025135,1.23580364,103990.0,103980.0,0.01570038]
[1737691025367,0.60825308,103990.0,103980.0,3.8e-07]
[1737691025543,0.61365981,103990.0,103980.0,3.8e-07]
[1737691026350,0.59065981,103990.0,103980.0,3.8e-07]
[1737691026556,0.57065981,103990.0,103980.0,3.8e-07]
[1737691026772,0.44905981,103990.0,103980.0,0.51763508]
[1737691026987,0.41875106,103990.0,103980.0,0.58441282]
[1737691027472,0.44175106,103990.0,103980.0,0.58441282]
[1737691027894,0.44175106,103990.0,103980.0,0.43441282]
[1737691028089,0.44175106,103990.0,103980.0,0.36763508]
[1737691028613,0.47205981,103990.0,103980.0,0.36763508]
[1737691028971,0.38579722,103990.0,103980.0,0.36763508]
[1737691032378,0.33660422,103990.0,103980.0,0.36763508]
[1737691032594,0.33660422,103990.0,103980.0,0.41403092]
[1737691033019,0.33660422,103990.0,103980.0,0.36763508]
[1737691033442,0.20885849,103990.0,103980.0,0.54960708]
[1737691033879,0.31360422,103990.0,103980.0,0.54960708]
[1737691034288,0.11269549,103990.0,103980.0,0.54960708]
[1737691034484,0.10669549,103990.0,103980.0,0.64695437]
[1737691034700,0.21644122,103990.0,103980.0,0.64695437]
[1737691034903,0.11169549,103990.0,103980.0,0.64695437]
[1737691035196,0.20744122,103990.0,103980.0,0.64695437]
[1737691035400,0.20244122,103990.0,103980.0,0.64695437]
[1737691035630,0.30760422,103990.0,103980.0,0.64695437]
[1737691035770,0.29860422,103990.0,103980.0,0.55060708]
[1737691037524,0.29860422,103990.0,103980.0,0.44443508]
[1737691037791,0.32891297,103990.0,103980.0,0.36863508]
[1737691038400,0.32891297,103990.0,103980.0,0.36763508]
[1737691038607,0.33091297,103990.0,103980.0,0.36763508]
[1737691038812,0.33991297,103990.0,103980.0,0.36763508]
[1737691039012,0.36291297,103990.0,103980.0,0.36763508]
[1737691040218,0.40138896,103990.0,103980.0,0.36763508]
[1737691040437,0.36291297,103990.0,103980.0,0.36763508]
[1737691042412,1.02427008,103990.0,103980.0,0.36763508]
[1737691042588,0.43811297,103990.0,103980.0,0.36763508]
[1737691043169,0.43811297,103990.0,103980.0,0.30749739]
[1737691043592,0.42911297,103990.0,103980.0,0.30749739]
[1737691044063,0.42711297,103990.0,103980.0,0.30749739]
[1737691044392,0.48211297,103990.0,103980.0,0.30749739]
[1737691045007,0.56837556,103990.0,103980.0,0.30749739]
[1737691045445,0.66872285,103990.0,103980.0,0.30749739]
[1737691045646,0.56237556,103990.0,103980.0,0.30749739]
[1737691045852,0.58973851,103990.0,103980.0,0.30749739]
[1737691046837,0.60918682,103990.0,103980.0,0.30749739]
[1737691047039,1.19534393,103990.0,103980.0,0.30749739]
[1737691047249,0.60918682,103990.0,103980.0,0.30763959]
[1737691047455,1.33759324,103990.0,103980.0,0.15415259]
[1737691047868,2.03759324,103990.0,103980.0,0.15415259]
[1737691048050,2.03759324,103990.0,103980.0,0.0001422]
[1737691048259,0.119172,103980.0,103970.0,0.0001423]
[1737691048462,0.22392673,103970.0,103960.0,1.0000009]
[1737691048666,0.40377402,103970.0,103960.0,1.0000009]
[1737691048864,0.43408277,103970.0,103960.0,1.0000009]
[1737691050036,0.44308277,103970.0,103960.0,1.0000009]
[1737691050238,1.14308277,103970.0,103960.0,1.0000009]
[1737691050544,1.18938277,103970.0,103960.0,1.0000009]
[1737691051157,1.19438277,103970.0,103960.0,1.0000009]
[1737691052318,1.11188277,103970.0,103960.0,1.0000009]
[1737691052927,1.06558277,103970.0,103960.0,1.0000009]
[1737691053339,1.08492909,103970.0,103960.0,1.0000009]
[1737691053957,1.78492909,103970.0,103960.0,1.0000009]
[1737691054113,1.08492909,103970.0,103960.0,1.0000009]
[1737691054719,1.2271784,103970.0,103960.0,1.0000009]
[1737691054933,1.82983111,103970.0,103960.0,1.0000009]
[1737691055143,1.10492909,103970.0,103960.0,1.0000009]
[1737691055384,1.09592909,103970.0,103960.0,1.0000009]
[1737691055602,1.10492909,103970.0,103960.0,1.0000009]
[1737691056439,1.09992909,103970.0,103960.0,1.0000009]
[1737691056665,1.11794553,103970.0,103960.0,1.0000009]
[1737691057360,1.24019484,103970.0,103960.0,1.0000009]
[1737691058721,1.14284755,103970.0,103960.0,1.0000009]
[1737691058987,1.30354638,103970.0,103960.0,0.84200528]
[1737691059207,1.35104638,103970.0,103960.0,0.74581528]
[1737691059821,1.34404638,103970.0,103960.0,0.74581528]
[1737691060040,1.34404638,103970.0,103960.0,0.72657728]
[1737691060241,1.35204638,103970.0,103960.0,0.64962528]
[1737691060533,1.38853247,103970.0,103960.0,0.60133023]
[1737691061003,1.38853247,103970.0,103960.0,0.58209223]
[1737691061491,1.38853247,103970.0,103960.0,0.50514023]
[1737691061492,1.37953247,103970.0,103960.0,0.50514023]
[1737691061949,1.24584436,103970.0,103960.0,0.50514023]
[1737691062169,1.16674436,103970.0,103960.0,0.50514023]
[1737691063763,1.19164638,103970.0,103960.0,0.50514023]
[1737691064427,1.27790897,103970.0,103960.0,0.50514023]
[1737691065081,1.37920897,103970.0,103960.0,0.48590223]
[1737691065321,1.47655626,103970.0,103960.0,0.48590223]
[1737691065749,1.27790897,103970.0,103960.0,0.48590223]
[1737691067993,1.27790897,103970.0,103960.0,0.38971223]
[1737691068230,1.17164638,103970.0,103960.0,0.28952223]
[1737691068431,1.35144638,103970.0,103960.0,0.12798477]
[1737691068639,1.35144638,103970.0,103960.0,0.03491798]
[1737691068841,0.043,103960.0,103940.0,0.11568449]
[1737691069048,1.02129302,103950.0,103940.0,0.11553233]
[1737691069244,1.05256972,103950.0,103940.0,0.11553233]
[1737691069667,1.07747174,103950.0,103940.0,0.11553233]
[1737691070205,0.119218,103930.0,103920.0,0.0001423]
[1737691070417,0.119227,103920.0,103910.0,0.0795423]
[1737691070612,0.93875383,103920.0,103910.0,0.0001423]
[1737691071183,0.32132002,103920.0,103910.0,0.0001423]
[1737691071397,1.60747713,103920.0,103910.0,0.0001423]
[1737691071819,1.61647713,103920.0,103910.0,0.0001423]
[1737691072038,1.64775383,103920.0,103910.0,0.0001423]
[1737691072249,1.74510112,103920.0,103910.0,0.0001423]
[1737691072866,1.77500314,103920.0,103910.0,0.0001423]
[1737691073274,1.77000314,103920.0,103910.0,0.0001423]
[1737691073483,1.67265585,103920.0,103910.0,0.0001423]
[1737691073695,1.67889841,103920.0,103910.0,0.0001423]
[1737691073900,1.65551733,103920.0,103910.0,0.0001423]
[1737691074326,1.04108352,103920.0,103910.0,0.0001423]
[1737691074567,1.03208352,103920.0,103910.0,0.0001423]
[1737691074778,1.00908352,103920.0,103910.0,0.1275423]
[1737691074987,1.01808352,103920.0,103910.0,0.15131076]
[1737691075243,1.00908352,103920.0,103910.0,0.1375423]
[1737691075423,1.01808352,103920.0,103910.0,0.1375423]
[1737691075916,0.34708352,103920.0,103910.0,0.1275423]
[1737691077768,0.34708352,103920.0,103910.0,0.6676423]
[1737691080934,0.31332002,103920.0,103910.0,0.7738793]
[1737691081462,0.21709302,103920.0,103910.0,0.87122659]
[1737691081658,0.11234729,103920.0,103910.0,0.87122659]
[1737691081873,0.11234729,103920.0,103910.0,0.33112659]
[1737691082958,0.10634729,103920.0,103910.0,0.33112659]
[1737691083320,0.09734729,103920.0,103910.0,0.33112659]
[1737691083587,0.39338173,103940.0,103930.0,0.220618]
[1737691083799,0.39338173,103940.0,103930.0,0.230618]
[1737691083800,0.29830902,103940.0,103930.0,0.230618]
[1737691084541,0.29830902,103940.0,103930.0,0.1344]
[1737691084930,0.30730902,103940.0,103930.0,0.1344]
[1737691085701,0.31230902,103940.0,103930.0,0.1344]
[1737691086580,0.21609302,103940.0,103930.0,0.230618]
[1737691086797,0.21609302,103940.0,103930.0,0.8515123]
[1737691087329,0.31230202,103940.0,103930.0,0.8515123]
[1737691088092,0.31230202,103940.0,103930.0,1.0015123]
[1737691088515,0.21609302,103940.0,103930.0,1.0015123]
[1737691088721,0.31230202,103940.0,103930.0,1.0015123]
[1737691089583,0.21609302,103940.0,103930.0,1.0015123]
[1737691089810,0.31230202,103940.0,103930.0,1.0015123]
[1737691090007,0.31230202,103940.0,103930.0,0.9052943]
[1737691090859,0.31230202,103940.0,103930.0,0.920718]
[1737691094194,0.31260085,103940.0,103930.0,0.920718]
[1737691094443,0.21639185,103940.0,103930.0,0.920718]
[1737691095025,0.21639185,103940.0,103930.0,0.92067642]
[1737691096230,0.31260085,103940.0,103930.0,0.92067642]
[1737691096429,0.31260085,103940.0,103930.0,1.01802371]
[1737691097451,0.31260085,103940.0,103930.0,1.02856099]
[1737691097664,0.21639185,103940.0,103930.0,1.02856099]
[1737691098036,0.11164612,103940.0,103930.0,1.02856099]
[1737691098883,0.10664612,103940.0,103930.0,1.02856099]
[1737691099303,0.10764612,103940.0,103930.0,1.02856099]
[1737691100129,0.09864612,103940.0,103930.0,1.02856099]
[1737691100870,0.10764612,103940.0,103930.0,1.02856099]
[1737691101673,0.21239185,103940.0,103930.0,1.02856099]
[1737691102084,0.10764612,103940.0,103930.0,1.02856099]
[1737691103459,0.21239185,103940.0,103930.0,0.9312137]
[1737691103665,0.30860085,103940.0,103930.0,0.92067642]
[1737691104466,0.30860085,103940.0,103930.0,0.82445842]
[1737691105118,0.30860085,103940.0,103930.0,0.92067642]
[1737691106405,0.33160085,103940.0,103930.0,0.61570072]
[1737691106611,0.30860085,103940.0,103930.0,0.62570072]
[1737691106803,0.30860085,103940.0,103930.0,0.81901827]
[1737691107825,0.30860085,103940.0,103930.0,0.62570072]
[1737691109274,0.30860085,103940.0,103930.0,0.72191872]
[1737691110228,0.21239185,103940.0,103930.0,0.72191872]
[1737691110466,0.30860085,103940.0,103930.0,0.62570072]
[1737691111167,0.30860085,103940.0,103930.0,0.72191872]
[1737691112220,0.33160085,103940.0,103930.0,0.5402423]
[1737691116377,0.46130085,103940.0,103930.0,0.0001423]
[1737691117872,1.19257755,103940.0,103930.0,0.0001423]
[1737691118662,1.19157755,103940.0,103930.0,0.0001423]
[1737691118875,1.19557755,103940.0,103930.0,0.0001423]
[1737691119530,1.07512703,103940.0,103930.0,0.0001423]
[1737691119762,1.08112703,103940.0,103930.0,0.0001423]
[1737691120031,1.09512703,103940.0,103930.0,0.0001423]
[1737691120562,1.10412703,103940.0,103930.0,0.0001423]
[1737691122052,1.1061209,103940.0,103930.0,0.0001423]
[1737691122441,1.1061209,103940.0,103930.0,0.5402423]
[1737691122842,1.0583209,103940.0,103930.0,0.5402423]
[1737691123066,0.3583209,103940.0,103930.0,0.5402423]
[1737691123420,0.3895976,103940.0,103930.0,0.5402423]
[1737691127420,0.47592166,103940.0,103930.0,0.5402423]
[1737691128326,0.47592166,103940.0,103930.0,0.0001423]
[1737691129518,0.47592166,103940.0,103930.0,0.0789423]
[1737691132339,0.47591365,103940.0,103930.0,0.0789423]
[1737691132586,0.47591365,103940.0,103930.0,0.0001423]
[1737691134329,0.42491077,103940.0,103930.0,0.5402423]
[1737691134551,0.45618747,103940.0,103930.0,0.5402423]
[1737691135379,0.45618747,103940.0,103930.0,0.61348653]
[1737691135582,0.42491077,103940.0,103930.0,0.61348653]
[1737691135786,0.42491077,103940.0,103930.0,0.74028653]
[1737691135968,0.45618747,103940.0,103930.0,0.6205423]
[1737691138435,0.45618747,103940.0,103930.0,0.5402423]
[1737691139984,0.43318747,103940.0,103930.0,0.5502423]
[1737691140282,0.43318747,103940.0,103930.0,0.68716653]
[1737691140771,0.45618747,103940.0,103930.0,0.68716653]
[1737691141010,0.45618747,103940.0,103930.0,0.5402423]
[1737691143585,1.15618747,103940.0,103930.0,0.5402423]
[1737691144936,0.45618747,103940.0,103930.0,0.5402423]
[1737691145539,0.42491077,103940.0,103930.0,0.5402423]
[1737691146205,0.42491077,103940.0,103930.0,0.60345653]
[1737691146611,0.42491077,103940.0,103930.0,0.5402423]
[1737691149921,0.45618747,103940.0,103930.0,0.5402423]
[1737691151015,0.36986341,103940.0,103930.0,0.5402423]
[1737691151210,1.06986341,103940.0,103930.0,0.5402423]
[1737691151415,1.03858671,103940.0,103930.0,0.5402423]
[1737691152079,1.03858671,103940.0,103930.0,0.60345653]
[1737691152935,0.33858671,103940.0,103930.0,0.60345653]
[1737691153720,0.33858671,103940.0,103930.0,0.6809423]
[1737691155033,0.31558671,103940.0,103930.0,0.7771603]
[1737691155197,0.31558671,103940.0,103930.0,0.6809423]
[1737691155406,0.33858671,103940.0,103930.0,0.6809423]
[1737691156704,0.33858671,103940.0,103930.0,0.5402423]
[1737691157239,0.33858671,103940.0,103930.0,0.69482653]
[1737691157948,0.33858671,103940.0,103930.0,0.74282653]
[1737691158465,0.33858671,103940.0,103930.0,0.6798423]
[1737691161386,0.11264612,103940.0,103930.0,0.7760603]
[1737691161604,0.20885512,103940.0,103930.0,0.7760603]
[1737691161776,0.31558671,103940.0,103930.0,0.7760603]
[1737691162427,0.21937771,103940.0,103930.0,0.7760603]
[1737691162575,0.11264612,103940.0,103930.0,0.87340759]
[1737691162991,0.09764612,103940.0,103930.0,0.87340759]
[1737691163195,0.19316577,103940.0,103930.0,0.87340759]
[1737691163403,0.42410636,103940.0,103930.0,0.6798423]
[1737691163605,0.41510636,103940.0,103930.0,0.6318423]
[1737691163826,0.42410636,103940.0,103930.0,0.6318423]
[1737691166241,0.42410636,103940.0,103930.0,0.7818423]
[1737691166898,0.42410636,103940.0,103930.0,0.87918959]
[1737691167331,0.42410636,103940.0,103930.0,0.92488959]
[1737691174555,0.29437477,103940.0,103930.0,0.8275423]
[1737691174770,0.19816577,103940.0,103930.0,0.9237603]
[1737691174955,0.19816577,103940.0,103930.0,0.9137603]
[1737691175125,0.19816577,103940.0,103930.0,0.9237603]
[1737691176143,0.40110636,103940.0,103930.0,0.8175423]
[1737691176345,0.40110636,103940.0,103930.0,0.8275423]
[1737691177703,0.30489736,103940.0,103930.0,1.02110759]
[1737691178063,0.19816577,103940.0,103930.0,1.02110759]
[1737691179417,0.40110636,103940.0,103930.0,0.8275423]
[1737691179842,0.40110636,103940.0,103930.0,0.9237603]
[1737691180049,0.31458671,103940.0,103930.0,0.9237603]
[1737691180851,0.31458671,103940.0,103930.0,0.7818423]
[1737691181050,0.31458671,103940.0,103930.0,0.7002423]
[1737691181217,0.33758671,103940.0,103930.0,0.6902423]
[1737691181568,0.36399606,103940.0,103930.0,0.5502423]
[1737691182132,0.33758671,103940.0,103930.0,0.7002423]
[1737691183635,0.42410636,103940.0,103930.0,0.7002423]
[1737691185260,0.42410636,103940.0,103930.0,0.6902423]
[1737691185399,0.42410636,103940.0,103930.0,0.7002423]
[1737691185603,0.42410636,103940.0,103930.0,0.6902423]
[1737691185804,0.42410636,103940.0,103930.0,0.7002423]
[1737691186012,0.56145657,103940.0,103930.0,0.6902423]
[1737691186421,0.56145657,103940.0,103930.0,0.5402423]
[1737691187430,0.48523245,103940.0,103930.0,0.5402423]
[1737691187639,0.48523245,103940.0,103930.0,0.0001423]
[1737691188063,0.34788224,103940.0,103930.0,0.0001423]
[1737691189154,1.04788224,103940.0,103930.0,0.0001423]
[1737691189973,0.34788224,103940.0,103930.0,0.0001423]
[1737691193650,0.34788224,103940.0,103930.0,0.5402423]
[1737691194683,1.04788224,103940.0,103930.0,0.5402423]
[1737691194889,1.15461383,103940.0,103930.0,0.5402423]
[1737691195083,1.04788224,103940.0,103930.0,0.5402423]
[1737691195892,1.04788224,103940.0,103930.0,0.0001423]
[1737691196101,1.18422714,103940.0,103930.0,0.0001423]
[1737691197584,1.07749555,103940.0,103930.0,0.0001423]
[1737691200162,1.07749555,103940.0,103930.0,0.5402423]
[1737691202396,1.17484284,103940.0,103930.0,0.5402423]
[1737691202619,1.18422714,103940.0,103930.0,0.5402423]
[1737691204524,1.31252714,103940.0,103930.0,0.5402423]
[1737691204777,1.35778735,103940.0,103930.0,0.4825103]
[1737691205397,1.35778735,103940.0,103930.0,0.43336934]
[1737691205607,0.096227,103920.0,103910.0,0.0001423]
[1737691205823,0.43003747,103920.0,103910.0,0.0001423]
[1737691206689,1.13003747,103920.0,103910.0,0.0001423]
[1737691207115,1.02330588,103920.0,103910.0,0.1397423]
[1737691207306,0.32330588,103920.0,103910.0,0.20669209]
[1737691207785,0.33230588,103920.0,103910.0,0.20669209]
[1737691207968,0.30930588,103920.0,103910.0,0.20669209]
[1737691208330,0.30930588,103920.0,103910.0,0.30292909]
[1737691208552,0.39671895,103920.0,103910.0,0.2359793]
[1737691208981,0.30049195,103920.0,103910.0,0.2359793]
[1737691209196,0.19376036,103920.0,103910.0,0.2359793]
[1737691209823,0.09641307,103920.0,103910.0,0.2359793]
[1737691210030,0.09641307,103920.0,103910.0,0.33332659]
[1737691210672,0.09641307,103920.0,103910.0,0.33323819]
[1737691211021,0.30049195,103920.0,103910.0,0.33323819]
[1737691212065,0.19376036,103920.0,103910.0,0.33323819]
[1737691212506,0.19376036,103920.0,103910.0,0.34322541]
[1737691212701,0.10734729,103920.0,103910.0,0.34313706]
[1737691213136,0.10634729,103920.0,103910.0,0.34313706]
[1737691213353,0.30930588,103920.0,103910.0,0.24578977]
[1737691213568,0.30030588,103920.0,103910.0,0.23680255]
[1737691213777,0.20407888,103920.0,103910.0,0.23680255]
[1737691213978,0.30119832,103920.0,103910.0,0.23680255]
[1737691214212,0.30119832,103920.0,103910.0,0.31824114]
[1737691214390,0.09823973,103920.0,103910.0,0.75161048]
[1737691214809,0.09723973,103920.0,103910.0,0.75161048]
[1737691215004,0.10523973,103920.0,103910.0,0.75061048]
[1737691215241,0.20146673,103920.0,103910.0,0.75061048]
[1737691215644,0.10523973,103920.0,103910.0,0.75061048]
[1737691217402,0.1050452,103920.0,103910.0,0.75061048]
[1737691217610,0.10461268,103920.0,103910.0,0.75061048]
[1737691218227,0.10363566,103920.0,103910.0,0.75061048]
[1737691219123,0.10336506,103920.0,103910.0,0.75061048]
[1737691219930,0.10336506,103920.0,103910.0,0.75075278]
[1737691220324,0.10336506,103920.0,103910.0,0.31738344]
[1737691220734,0.10366389,103920.0,103910.0,0.31738344]
[1737691221131,0.10241627,103920.0,103910.0,0.31738344]
[1737691221358,0.09441627,103920.0,103910.0,0.31738344]
[1737691222185,0.09441627,103920.0,103910.0,0.31838344]
[1737691223020,0.0943739,103920.0,103910.0,0.31838344]
[1737691223224,0.09418481,103920.0,103910.0,0.31838344]
[1737691223440,0.2971434,103920.0,103910.0,0.31838344]
[1737691223642,0.40387499,103920.0,103910.0,0.09400785]
[1737691223856,0.42687499,103920.0,103910.0,0.0011423]
[1737691224076,0.42687499,103920.0,103910.0,0.01110785]
[1737691224612,0.3201434,103920.0,103910.0,0.44347719]
[1737691224816,0.3291434,103920.0,103910.0,0.52939264]
[1737691225019,0.3311434,103920.0,103910.0,0.52939264]
[1737691225285,0.3081434,103920.0,103910.0,0.62562964]
[1737691225636,0.3081434,103920.0,103910.0,0.52939264]
[1737691226330,0.43787499,103920.0,103910.0,0.44347719]
[1737691226688,0.43515909,103920.0,103910.0,0.44347719]
[1737691227658,0.43477981,103920.0,103910.0,0.44347719]
[1737691229521,0.43477981,103920.0,103910.0,0.43351164]
[1737691229747,0.43477981,103920.0,103910.0,0.44347719]
[1737691229973,0.43477981,103920.0,103910.0,0.50549374]
[1737691230883,0.32804822,103920.0,103910.0,0.50549374]
[1737691232038,0.32804822,103920.0,103910.0,0.44347719]
[1737691233321,0.30504822,103920.0,103910.0,0.53971419]
[1737691233897,0.10208963,103920.0,103910.0,0.66571419]
[1737691234409,0.19831663,103920.0,103910.0,0.66571419]
[1737691234609,0.30504822,103920.0,103910.0,0.66571419]
[1737691235065,0.20882122,103920.0,103910.0,0.76306148]
[1737691236017,0.10208963,103920.0,103910.0,0.76306148]
[1737691236237,0.01129883,103920.0,103910.0,0.76306148]
[1737691236948,0.21537771,103920.0,103910.0,0.76406148]
[1737691237662,0.21537771,103920.0,103910.0,0.75409593]
[1737691237895,0.21537771,103920.0,103910.0,0.76406148]
[1737691238112,0.31160471,103920.0,103910.0,0.66671419]
[1737691238361,0.21537771,103920.0,103910.0,0.66671419]
[1737691238841,0.10864612,103920.0,103910.0,0.66671419]
[1737691240125,0.01129883,103920.0,103910.0,0.66671419]
[1737691240694,0.01129883,103920.0,103910.0,0.67668227]
[1737691240918,0.00929883,103920.0,103910.0,0.77402956]
[1737691241187,0.00029883,103920.0,103910.0,0.77502956]
[1737691247182,0.00029883,103920.0,103910.0,0.92502956]
[1737691248959,0.00029883,103920.0,103910.0,2.32540844]
[1737691249197,0.00029883,103920.0,103910.0,2.34540844]
[1737691249483,0.00029883,103940.0,103930.0,0.33708355]
[1737691249741,0.00029883,103940.0,103930.0,0.41028409]
[1737691250920,0.00029883,103940.0,103930.0,0.41128409]
[1737691251670,0.0074821,103940.0,103930.0,0.41128409]
[1737691252092,0.21156098,103940.0,103930.0,0.18808355]
[1737691252292,0.30776998,103940.0,103930.0,0.097218]
[1737691252514,0.30776998,103940.0,103930.0,0.25718355]
[1737691252721,0.30876998,103940.0,103930.0,0.25718355]
[1737691252921,0.50019198,103940.0,103930.0,0.43336934]
[1737691253378,0.51119198,103940.0,103930.0,0.66653468]
[1737691253591,0.50400871,103940.0,103930.0,0.61275268]
[1737691253816,0.21537771,103940.0,103930.0,0.61275268]
[1737691254032,0.31158671,103940.0,103930.0,0.76275268]
[1737691254241,0.31158671,103940.0,103930.0,0.59333489]
[1737691254652,0.31158671,103940.0,103930.0,0.69055289]
[1737691254854,0.21537771,103940.0,103930.0,0.69055289]
[1737691255287,0.21537771,103940.0,103930.0,0.76725289]
[1737691255518,0.10864612,103940.0,103930.0,0.76725289]
[1737691255732,0.01129883,103940.0,103930.0,0.86460018]
[1737691255944,0.01129883,103940.0,103930.0,0.91400018]
[1737691256564,0.00029883,103940.0,103930.0,0.91400018]
[1737691256769,0.00029883,103940.0,103930.0,2.10030018]
[1737691257006,0.00529883,103940.0,103930.0,2.10130018]
[1737691257421,0.01248088,103940.0,103930.0,1.24000018]
[1737691257811,0.01248088,103940.0,103930.0,1.09000018]
[1737691258084,0.01248088,103940.0,103930.0,1.04060018]
[1737691258304,0.01248088,103940.0,103930.0,1.03960018]
[1737691258723,0.01248088,103940.0,103930.0,1.04260018]
[1737691258893,0.00529883,103940.0,103930.0,1.05267955]
[1737691259098,0.00529883,103940.0,103930.0,1.04967955]
[1737691259278,0.00029883,103940.0,103930.0,1.05067955]
[1737691259634,0.00029883,103940.0,103930.0,1.05367955]
[1737691259841,0.10703042,103940.0,103930.0,1.05367955]
[1737691260270,0.10703042,103940.0,103930.0,1.05067955]
[1737691260474,0.10703042,103940.0,103930.0,0.95033226]
[1737691260855,0.10703042,103940.0,103930.0,0.94036671]
[1737691260856,0.20537771,103940.0,103930.0,0.94036671]
[1737691261065,0.30158671,103940.0,103930.0,0.76733489]
[1737691261275,0.30158671,103940.0,103930.0,0.75736934]
[1737691261492,0.37838671,103940.0,103930.0,0.75736934]
[1737691261705,0.40138671,103940.0,103930.0,0.75736934]
[1737691261923,0.40138671,103940.0,103930.0,0.43436934]
[1737691262140,0.44978671,103940.0,103930.0,0.43636934]
[1737691262793,0.58621999,103940.0,103930.0,0.43436934]
[1737691263217,0.58721999,103940.0,103930.0,0.43436934]
[1737691263860,0.58521999,103940.0,103930.0,0.43436934]
[1737691264077,0.60021999,103940.0,103930.0,0.43436934]
[1737691264297,0.61121999,103940.0,103930.0,0.001]
[1737691264554,1.31121999,103940.0,103930.0,0.001]
[1737691264746,1.40856728,103940.0,103930.0,1e-06]
[1737691264973,1.31121999,103940.0,103930.0,1e-06]
[1737691265399,2.01490788,103940.0,103930.0,1e-06]
[1737691265611,1.31490788,103940.0,103930.0,1e-06]
[1737691265851,0.096227,103920.0,103910.0,0.0001423]
[1737691266038,0.32330588,103920.0,103910.0,0.0001423]
[1737691266223,0.43003747,103920.0,103910.0,0.0001423]
[1737691267001,0.43203747,103920.0,103910.0,0.0001423]
[1737691267404,0.44103747,103920.0,103910.0,0.0001423]
[1737691267817,0.44103747,103920.0,103910.0,0.43351164]
[1737691268028,0.44103747,103920.0,103910.0,0.47787359]
[1737691268236,0.52343747,103920.0,103910.0,0.0001423]
[1737691270856,0.55313916,103920.0,103910.0,0.0001423]
[1737691271071,0.55288416,103920.0,103910.0,0.0001423]
[1737691271849,0.59858416,103920.0,103910.0,0.0001423]
[1737691272514,1.29658416,103920.0,103910.0,0.0001423]
[1737691272731,1.28758416,103920.0,103910.0,0.0001423]
[1737691272946,1.31455159,103920.0,103910.0,0.0001423]
[1737691273163,1.32355159,103920.0,103910.0,0.0001423]
[1737691273353,1.42269203,103920.0,103910.0,0.0001423]
[1737691273569,1.45610508,103920.0,103910.0,0.0001423]
[1737691273811,1.45610508,103920.0,103890.0,0.0001423]